fUSD/lending_fUSD_20251221
["ID","MTS","AMOUNT","RATE_DAILY","PERIOD"]
[399405145,1766327729602,-216.30072536,0.00013273,2]
[399405146,1766327729612,-500.0,0.00013273,2]
[399405147,1766327729621,-500.0,0.00013273,2]
[399405149,1766327729630,-276.49556074,0.00013273,2]
[399405150,1766327729640,-200.0,0.00013463,2]
[399405151,1766327729649,-1000.0,0.000135,2]
[399405152,1766327729658,-151.1,0.00013516,2]
[399405153,1766327729668,-166.66,0.00013672,2]
[399405155,1766327729678,-261.824715,0.00013673,2]
[399405156,1766327729688,-500.0,0.00013698,2]
[399405157,1766327729698,-500.0,0.00013698,2]
[399405158,1766327729707,-500.0,0.00013698,2]
[399405160,1766327729717,-500.0,0.00013698,2]
[399405161,1766327729726,-500.0,0.00013698,2]
[399405162,1766327729735,-500.0,0.00013698,2]
[399405163,1766327729744,-500.0,0.00013698,2]
[399405164,1766327729754,-500.0,0.00013698,2]
[399405165,1766327729764,-500.0,0.00013698,2]
[399405166,1766327729773,-500.0,0.00013698,2]
[399405167,1766327729783,-500.0,0.00013698,2]
[399405168,1766327729792,-500.0,0.00013698,2]
[399405169,1766327729801,-500.0,0.00013698,2]
[399405170,1766327729810,-500.0,0.00013698,2]
[399405171,1766327729819,-500.0,0.00013698,2]
[399405172,1766327729829,-500.0,0.00013698,2]
[399405173,1766327729839,-500.0,0.00013698,2]
[399405174,1766327729849,-500.0,0.00013698,2]
[399405175,1766327729858,-500.0,0.00013698,2]
[399405176,1766327729868,-548.39145634,0.00013698,2]
[399405177,1766327729878,-500.0,0.00013698,2]
[399405178,1766327729887,-500.0,0.00013698,2]
[399405179,1766327729896,-500.0,0.00013698,2]
[399405180,1766327729905,-500.0,0.00013698,2]
[399405181,1766327729915,-500.0,0.00013698,2]
[399405182,1766327729924,-500.0,0.00013698,2]
[399405183,1766327729933,-500.0,0.00013698,2]
[399405184,1766327729946,-500.0,0.00013698,2]
[399405185,1766327729956,-500.0,0.00013698,2]
[399405186,1766327729966,-500.0,0.00013698,2]
[399405187,1766327729975,-500.0,0.00013698,2]
[399405188,1766327729986,-500.0,0.00013698,2]
[399405189,1766327730000,-500.0,0.00013698,2]
[399405190,1766327730010,-500.0,0.00013698,2]
[399405191,1766327730022,-500.0,0.00013698,2]
[399405192,1766327730032,-500.0,0.00013698,2]
[399405193,1766327730042,-500.0,0.00013698,2]
[399405194,1766327730052,-500.0,0.00013698,2]
[399405195,1766327730061,-500.0,0.00013698,2]
[399405196,1766327730071,-500.0,0.00013698,2]
[399405197,1766327730080,-500.0,0.00013698,2]
[399405198,1766327730090,-500.0,0.00013698,2]
[399405199,1766327730099,-500.0,0.00013698,2]
[399405200,1766327730109,-500.0,0.00013698,2]
[399405201,1766327730119,-500.0,0.00013698,2]
[399405202,1766327730128,-500.0,0.00013698,2]
[399405203,1766327730138,-500.0,0.00013698,2]
[399405204,1766327730148,-500.0,0.00013698,2]
[399405205,1766327730157,-500.0,0.00013698,2]
[399405206,1766327730167,-500.0,0.00013698,2]
[399405207,1766327730176,-500.0,0.00013698,2]
[399405208,1766327730185,-500.0,0.00013698,2]
[399405209,1766327730195,-500.0,0.00013698,2]
[399405210,1766327730204,-500.0,0.00013698,2]
[399405211,1766327730214,-500.0,0.00013698,2]
[399405212,1766327730223,-500.0,0.00013698,2]
[399405213,1766327730233,-500.0,0.00013698,2]
[399405214,1766327730242,-500.0,0.00013698,2]
[399405215,1766327730254,-500.0,0.00013698,2]
[399405216,1766327730263,-500.0,0.00013698,2]
[399405217,1766327730273,-500.0,0.00013698,2]
[399405218,1766327730283,-500.0,0.00013698,2]
[399405219,1766327730293,-500.0,0.00013698,2]
[399405220,1766327730302,-221.06533037,0.00013698,2]
[399405221,1766327730312,-501.00325997,0.00013698,2]
[399405222,1766327730321,-500.0,0.00013698,2]
[399405223,1766327730331,-500.0,0.00013698,2]
[399405224,1766327730340,-500.0,0.00013698,2]
[399405225,1766327730349,-500.0,0.00013698,2]
[399405226,1766327730364,-500.0,0.00013698,2]
[399405227,1766327730374,-500.0,0.00013698,2]
[399405228,1766327730383,-500.0,0.00013698,2]
[399405229,1766327730392,-500.0,0.00013698,2]
[399405230,1766327730402,-500.0,0.00013698,2]
[399405231,1766327730411,-500.0,0.00013698,2]
[399405232,1766327730421,-500.0,0.00013698,2]
[399405233,1766327730430,-500.0,0.00013698,2]
[399405234,1766327730440,-500.0,0.00013698,2]
[399405235,1766327730450,-500.0,0.00013698,2]
[399405236,1766327730459,-500.0,0.00013698,2]
[399405237,1766327730469,-500.0,0.00013698,2]
[399405238,1766327730478,-500.0,0.00013698,2]
[399405239,1766327730488,-500.0,0.00013698,2]
[399405240,1766327730499,-500.0,0.00013698,2]
[399405241,1766327730509,-500.0,0.00013698,2]
[399405242,1766327730519,-196.43,0.00013699,2]
[399405243,1766327730528,-1000.0,0.00013699,2]
[399405244,1766327730538,-21172.24418773,0.00013728,2]
[399405245,1766327730548,-22823.2979547,0.00013728,2]
[399405246,1766327730562,-1001.62490087,0.00013821,2]
[399405247,1766327730571,-208.16009032,0.00013821,2]
[399405248,1766327730581,-1000.0,0.00013821,2]
[399405249,1766327730590,-1001.10835573,0.00013821,2]
[399405250,1766327730599,-1000.0,0.00013821,2]
[399405251,1766327730609,-736.0,0.00013963,2]
[399405252,1766327730618,-166.66,0.00014124,2]
[399405253,1766327730628,-151.1,0.0001413,2]
[399405254,1766327730637,-397.62,0.00014215,2]
[399405255,1766327730647,-1500.0,0.00014368,2]
[399405256,1766327730657,-1500.0,0.00014368,2]
[399405257,1766327730667,-1000.0,0.00014456,2]
[399405258,1766327730677,-166.66,0.00014575,2]
[399405259,1766327730687,-151.1,0.00014745,2]
[399405260,1766327730697,-1138.30499273,0.00014916,2]
[399405261,1766327730707,-1834.49283525,0.00014916,2]
[399405262,1766327730717,-242.06649334,0.00015,2]
[399405263,1766327730726,-1154.75497368,0.00015,2]
[399405264,1766327730735,-13730.75410372,0.00015,2]
[399405265,1766327730744,-166.66,0.00015026,2]
[399405266,1766327730758,-165.49149055,0.00015302,2]
[399405267,1766327730767,-1102.0,0.00015317,2]
[399405268,1766327730777,-200.0,0.00015359,2]
[399405269,1766327730786,-207.4,0.00015359,2]
[399405270,1766327730795,-215.0738,0.00015359,2]
[399405271,1766327730805,-223.0315306,0.00015359,2]
[399405272,1766327730814,-231.28369723,0.00015359,2]
[399405273,1766327730825,-239.84119403,0.00015359,2]
[399405274,1766327730835,-262.28060068,0.00015359,2]
[399405275,1766327730844,-505.85702931,0.000154,2]
[399405276,1766327730854,-166.66,0.00015478,2]
[399405277,1766327730863,-1701.95013424,0.00015651,2]
[399405278,1766327730873,-2228.99632343,0.00015807,2]
[399405279,1766327730882,-166.66,0.00015929,2]
[399405280,1766327730891,-896.96305507,0.00015963,2]
[399405281,1766327730901,-500.0,0.00015972,2]
[399405282,1766327730910,-226.54246888,0.00015973,2]
[399405283,1766327730919,-248.8938967,0.00015973,2]
[399405284,1766327730929,-502.52786195,0.00015973,2]
[399405285,1766327730940,-500.0,0.00015973,2]
[399405286,1766327730953,-500.0,0.00015973,2]
[399405287,1766327730963,-500.0,0.00015973,2]
[399405288,1766327730973,-500.0,0.00015973,2]
[399405289,1766327730983,-517.55500559,0.00015973,2]
[399405290,1766327730992,-160.18740865,0.00015973,2]
[399405291,1766327731001,-160.176,0.00015973,2]
[399405292,1766327731010,-160.18741035,0.00015973,2]
[399405293,1766327731020,-177.38138354,0.00015973,2]
[399405294,1766327731029,-160.18740865,0.00015973,2]
[399405295,1766327731039,-160.18546537,0.00015973,2]
[399405296,1766327731048,-160.18818998,0.00015973,2]
[399405297,1766327731058,-162.2682575,0.00015973,2]
[399405298,1766327731067,-500.77244015,0.00015973,2]
[399405299,1766327731077,-160.18819168,0.00015973,2]
[399405300,1766327731086,-500.52093975,0.00015973,2]
[399405301,1766327731096,-160.18648397,0.00015973,2]
[399405302,1766327731105,-160.18740865,0.00015973,2]
[399405303,1766327731115,-500.67170266,0.00015973,2]
[399405304,1766327731125,-160.18740865,0.00015973,2]
[399405305,1766327731134,-160.18740865,0.00015973,2]
[399405306,1766327731144,-160.18741035,0.00015973,2]
[399405307,1766327731156,-160.18648371,0.00015973,2]
[399405308,1766327731166,-160.18740865,0.00015973,2]
[399405309,1766327731175,-160.18477965,0.00015973,2]
[399405310,1766327731185,-1475664.67251297,0.00016,4]
[399405311,1766327731195,-1000.0,0.00016062,2]
[399405312,1766327731206,-174.93,0.00016089,2]
[399405313,1766327731215,-6339.51832082,0.000162,5]
[399405314,1766327731226,-500.0,0.00016437,2]
[399405315,1766327731236,-11351.2,0.00016438,2]
[399405316,1766327731245,-999.0,0.00016515,3]
[399405317,1766327731255,-1000.0,0.00016521,2]
[399405318,1766327731265,-1000.0,0.00016521,2]
[399405319,1766327731275,-1000.0,0.00016521,2]
[399405320,1766327731285,-1002.96949263,0.00016521,2]
[399405321,1766327731295,-165.15,0.00016712,2]
[399405322,1766327731305,-21172.24418773,0.00016875,2]
[399405323,1766327731315,-22823.2979547,0.00016875,2]
[399405324,1766327731325,-219.80510971,0.00016973,2]
[399405325,1766327731334,-2014.45964951,0.00016999,2]
[399405326,1766327731344,-3087225.77259803,0.00017,2]
[399405327,1766327731360,-1054.87942895,0.00017,2]
[399405328,1766327731413,-165.49149055,0.00015302,2]
[399405329,1766327731424,-10890.1055254,0.00017,2]
[399405330,1766327731435,-1239.43669989,0.00017,2]
[399405331,1766327731451,-8040.49557726,0.00017,2]
[399405332,1766327731463,-196227.25740561,0.00017,2]
[399405333,1766327731474,-4257.78598744,0.00017,2]
[399405334,1766327731486,-826.28059818,0.00017,2]
[399405335,1766327731497,-5277150.7654942,0.00017,2]
[399405336,1766327731507,-778.11063303,0.00017,2]
[399405337,1766327731801,-1046608.05779184,0.00017,2]
[399405338,1766327731986,-619.94646908,0.00017,2]
[399405339,1766327731997,-1760.9999,0.00017,2]
[399405340,1766327732047,-19.09813281,0.00017,2]
[399405341,1766327732059,-2979.06507186,0.00017,2]
[399405342,1766327732070,-1137.79536712,0.00017,2]
[399405343,1766327732081,-1988.8604776,0.00017,2]
[399405344,1766327732093,-7569.95305312,0.00017,2]
[399405345,1766327732108,-735.24608787,0.00017,2]
[399405346,1766327732132,-5939.35896878,0.00017,2]
[399405347,1766327732143,-391810.21143119,0.00017,2]
[399405348,1766327732257,-466.81370507,0.00013698,2]
[399405349,1766327732268,-33.18629493,0.00013698,2]
[399405350,1766327732278,-500.0,0.00013698,2]
[399405351,1766327732287,-500.0,0.00013698,2]
[399405352,1766327732297,-500.0,0.00013698,2]
[399405353,1766327732306,-500.0,0.00015972,2]
[399405354,1766327732315,-56134.15447291,0.00017,2]
[399405355,1766327732326,-3607.02658723,0.00017,2]
[399405356,1766327732338,-1443.4269081,0.00017,2]
[399405357,1766327732348,-23916.42488506,0.00017,2]
[399405358,1766327732992,500.0,0.00035609,60]
[399405359,1766327733098,500.0,0.00035615,60]
[399405360,1766327733178,300.0,8.998e-05,2]
[399405361,1766327733237,169.0,9.898e-05,2]
[399405362,1766327733679,151.0,0.0003561,31]
[399405363,1766327733899,500.0,0.00035609,60]
[399405364,1766327734062,151.0,0.0003561,31]
[399405365,1766327736422,255.983702,0.0003561,31]
[399405366,1766327737262,189.89,0.000304,30]
[399405367,1766327737422,300.0,8.998e-05,2]
[399405368,1766327737473,420.0,9.898e-05,2]
[399405370,1766327738777,250.0,8.8e-05,2]
[399405371,1766327738815,250.0,8.4e-05,2]
[399405372,1766327738853,269.4494774,8.759e-05,2]
[399405373,1766327739108,324.900408,0.000351,90]
[399405374,1766327740699,549.68,0.00035609,60]
[399405375,1766327740809,549.68,0.00035615,60]
[399405376,1766327741831,1200.0,7.999e-05,2]
[399405377,1766327743202,447.09,0.000356,30]
[399405383,1766327762390,151.0,0.00035616,30]
[399405384,1766327763053,156.587,0.00035616,30]
[399405386,1766327763713,162.380719,0.00035616,30]
[399405387,1766327764337,168.3888056,0.00035616,30]
[399405388,1766327765014,174.61919141,0.00035616,30]
[399405389,1766327765646,181.08010149,0.00035616,30]
[399405390,1766327766273,187.78006525,0.00035616,30]
[399405391,1766327766888,204.09216068,0.00035616,30]
[399405393,1766327774468,590.31244767,0.00035616,30]
[399405399,1766327813791,683.92219257,0.0001048,2]
[399405401,1766327818441,14750.30492908,0.00035616,30]
[399405418,1766327825178,250.0,0.00035616,30]
[399405419,1766327825606,151.0,0.00035616,30]
[399405420,1766327825792,250.0,0.00035616,30]
[399405421,1766327826211,161.14216565,0.00035616,30]
[399405422,1766327826429,250.0,0.00035616,30]
[399405423,1766327827056,250.0,0.00035616,30]
[399405424,1766327828093,250.0,0.00035616,30]
[399405425,1766327828227,151.0,0.00035616,30]
[399405426,1766327828380,250.0,0.00035616,30]
[399405427,1766327828896,250.0,0.00035616,30]
[399405428,1766327829002,151.0,0.00035616,30]
[399405429,1766327829332,500.68367281,0.00035616,30]
[399405430,1766327829432,250.0,0.00035616,30]
[399405431,1766327829601,151.0,0.00035616,30]
[399405432,1766327829995,250.0,0.00035616,30]
[399405433,1766327830101,250.0,0.00035616,30]
[399405434,1766327830252,151.0,0.00035616,30]
[399405435,1766327830617,250.0,0.00035616,30]
[399405437,1766327830719,250.0,0.00035616,30]
[399405439,1766327830848,151.0,0.00035616,30]
[399405440,1766327831215,250.0,0.00035616,30]
[399405441,1766327831323,250.0,0.00035616,30]
[399405442,1766327831487,151.0,0.00035616,30]
[399405443,1766327831910,250.0,0.00035616,30]
[399405444,1766327832021,362.8612033,0.00035616,30]
[399405445,1766327832138,151.0,0.00035616,30]
[399405446,1766327832370,250.0,0.00035616,30]
[399405447,1766327832512,250.0,0.00035616,30]
[399405448,1766327832611,250.0,0.00035616,30]
[399405449,1766327832735,213.08181696,0.00035616,30]
[399405450,1766327832986,250.0,0.00035616,30]
[399405451,1766327833603,250.0,0.00035616,30]
[399405452,1766327833712,250.0,0.00035616,30]
[399405453,1766327833820,250.0,0.00035616,30]
[399405454,1766327834250,250.0,0.00035616,30]
[399405455,1766327834355,250.0,0.00035616,30]
[399405456,1766327834459,250.0,0.00035616,30]
[399405457,1766327834861,250.0,0.00035616,30]
[399405458,1766327834969,250.0,0.00035616,30]
[399405459,1766327835080,250.0,0.00035616,30]
[399405460,1766327835549,250.0,0.00035616,30]
[399405461,1766327835654,250.0,0.00035616,30]
[399405462,1766327835925,200.0,0.00035616,30]
[399405463,1766327836191,261.07194788,0.00035616,30]
[399405464,1766327836567,200.0,0.00035616,30]
[399405465,1766327836680,250.0,0.00035616,30]
[399405466,1766327837151,200.0,0.00035616,30]
[399405467,1766327837302,250.0,0.00035616,30]
[399405468,1766327837778,200.0,0.00035616,30]
[399405469,1766327837927,250.0,0.00035616,30]
[399405470,1766327838418,200.0,0.00035616,30]
[399405471,1766327838712,414.0,0.00035616,30]
[399405472,1766327838818,250.0,0.00035616,30]
[399405473,1766327839040,200.0,0.00035616,30]
[399405474,1766327839191,429.318,0.00035616,30]
[399405475,1766327839295,250.0,0.00035616,30]
[399405476,1766327839665,200.0,0.00035616,30]
[399405477,1766327839778,250.0,0.00035616,30]
[399405478,1766327839887,445.202766,0.00035616,30]
[399405479,1766327840195,500.0,0.00035616,30]
[399405480,1766327840395,250.0,0.00035616,30]
[399405481,1766327840501,461.67526834,0.00035616,30]
[399405482,1766327840743,200.0,0.00035616,30]
[399405483,1766327840841,500.0,0.00035616,30]
[399405484,1766327841011,250.0,0.00035616,30]
[399405486,1766327841121,478.75725327,0.00035616,30]
[399405487,1766327841390,200.0,0.00035616,30]
[399405488,1766327841899,500.0,0.00035616,30]
[399405489,1766327842021,220.52553272,0.00035616,30]
[399405490,1766327842137,496.47127164,0.00035616,30]
[399405491,1766327842242,250.0,0.00035616,30]
[399405492,1766327842511,500.0,0.00035616,30]
[399405493,1766327842724,646.5143236,0.00035616,30]
[399405494,1766327842828,250.0,0.00035616,30]
[399405495,1766327843131,500.0,0.00035616,30]
[399405496,1766327843983,500.0,0.00035616,30]
[399405497,1766327844160,1219.28,0.00035616,30]
[399405498,1766327844617,500.0,0.00035616,30]
[399405502,1766327845226,559.19188,0.00035616,30]
[399405503,1766327845335,542.48742341,0.00035616,30]
[399405504,1766327846268,250.0,0.00035616,30]
[399405505,1766327846407,200.0,0.00035616,30]
[399405506,1766327846964,207.4,0.00035616,30]
[399405507,1766327847390,250.0,0.00035616,30]
[399405508,1766327847617,215.0738,0.00035616,30]
[399405509,1766327848038,250.0,0.00035616,30]
[399405510,1766327848264,184.9262,0.00035616,30]
[399405511,1766327848445,220.0,0.00035616,30]
[399405512,1766327848672,250.0,0.00035616,30]
[399405513,1766327849080,220.0,0.00035616,30]
[399405514,1766327849275,250.0,0.00035616,30]
[399405515,1766327849598,151.0,0.00035616,30]
[399405516,1766327849926,250.0,0.00035616,30]
[399405517,1766327850193,151.0,0.00035616,30]
[399405518,1766327850785,205.94369474,0.00035616,30]
[399405519,1766327851050,250.0,0.00035616,30]
[399405520,1766327851391,250.0,0.00035616,30]
[399405521,1766327851674,250.0,0.00035616,30]
[399405522,1766327852508,250.0,0.00035616,30]
[399405523,1766327852973,250.0,0.00035616,30]
[399405524,1766327853118,250.0,0.00035616,30]
[399405525,1766327853630,250.0,0.00035616,30]
[399405526,1766327853750,250.0,0.00035616,30]
[399405527,1766327854018,160.0,0.00035616,30]
[399405528,1766327854241,250.0,0.00035616,30]
[399405529,1766327854462,250.0,0.00035616,30]
[399405530,1766327854779,160.0,0.00035616,30]
[399405531,1766327855090,250.0,0.00035616,30]
[399405532,1766327855250,160.0,0.00035616,30]
[399405533,1766327855358,250.0,0.00035616,30]
[399405534,1766327855896,250.0,0.00035616,30]
[399405535,1766327856014,250.0,0.00035616,30]
[399405536,1766327856594,250.0,0.00035616,30]
[399405537,1766327856892,250.0,0.00035616,30]
[399405538,1766327857216,250.0,0.00035616,30]
[399405539,1766327857503,250.0,0.00035616,30]
[399405540,1766327857836,250.0,0.00035616,30]
[399405541,1766327858132,250.0,0.00035616,30]
[399405542,1766327858469,250.0,0.00035616,30]
[399405543,1766327858781,250.0,0.00035616,30]
[399405544,1766327859094,250.0,0.00035616,30]
[399405545,1766327859387,250.0,0.00035616,30]
[399405546,1766327859717,250.0,0.00035616,30]
[399405547,1766327860051,250.0,0.00035616,30]
[399405548,1766327860344,250.0,0.00035616,30]
[399405549,1766327860683,250.0,0.00035616,30]
[399405550,1766327861048,250.0,0.00035616,30]
[399405551,1766327861284,250.0,0.00035616,30]
[399405552,1766327861682,250.0,0.00035616,30]
[399405553,1766327861869,250.0,0.00035616,30]
[399405554,1766327862294,250.0,0.00035616,30]
[399405555,1766327862478,250.0,0.00035616,30]
[399405556,1766327862895,250.0,0.00035616,30]
[399405557,1766327863086,250.0,0.00035616,30]
[399405558,1766327863200,537.6845,0.00035616,30]
[399405559,1766327863527,250.0,0.00035616,30]
[399405560,1766327863710,250.0,0.00035616,30]
[399405561,1766327863998,500.0,0.00035616,30]
[399405562,1766327864162,250.0,0.00035616,30]
[399405563,1766327864350,250.0,0.00035616,30]
[399405564,1766327864617,500.0,0.00035616,30]
[399405565,1766327864752,250.0,0.00035616,30]
[399405566,1766327865225,500.0,0.00035616,30]
[399405567,1766327865404,250.0,0.00035616,30]
[399405568,1766327865844,500.0,0.00035616,30]
[399405569,1766327866485,500.0,0.00035616,30]
[399405570,1766327866591,250.0,0.00035616,30]
[399405571,1766327867137,250.0,0.00035616,30]
[399405572,1766327867568,500.0,0.00035616,30]
[399405574,1766327867793,250.0,0.00035616,30]
[399405576,1766327868187,500.0,0.00035616,30]
[399405577,1766327868453,250.0,0.00035616,30]
[399405578,1766327868795,500.0,0.00035616,30]
[399405579,1766327869113,250.0,0.00035616,30]
[399405580,1766327869575,500.0,0.00035616,30]
[399405581,1766327869713,250.0,0.00035616,30]
[399405582,1766327870057,151.0,0.00035616,30]
[399405583,1766327870156,500.0,0.00035616,30]
[399405584,1766327870342,250.0,0.00035616,30]
[399405585,1766327870698,151.0,0.00035616,30]
[399405586,1766327870797,500.0,0.00035616,30]
[399405587,1766327870959,250.0,0.00035616,30]
[399405588,1766327871344,500.0,0.00035616,30]
[399405589,1766327871444,537.68450001,0.00035616,30]
[399405590,1766327871579,250.0,0.00035616,30]
[399405591,1766327871819,151.0,0.00035616,30]
[399405592,1766327871944,500.0,0.00035616,30]
[399405593,1766327872051,1219.28,0.00035616,30]
[399405594,1766327872189,250.0,0.00035616,30]
[399405595,1766327872541,151.0,0.00035616,30]
[399405596,1766327872654,500.0,0.00035616,30]
[399405597,1766327873009,250.0,0.00035616,30]
[399405598,1766327873596,151.0,0.00035616,30]
[399405599,1766327873865,250.0,0.00035616,30]
[399405600,1766327873990,151.0,0.00035616,30]
[399405601,1766327874094,500.0,0.00035616,30]
[399405602,1766327874236,500.0,0.00035609,120]
[399405604,1766327874551,500.0,0.00035615,120]
[399405605,1766327874734,151.0,0.00035616,30]
[399405606,1766327874931,151.0,0.00035616,30]
[399405607,1766327875589,151.0,0.00035616,30]
[399405608,1766327876200,151.0,0.00035616,30]
[399405609,1766327877120,500.0,0.00035616,30]
[399405610,1766327877220,151.0,0.00035616,30]
[399405611,1766327877392,500.0,0.00035616,30]
[399405612,1766327877492,151.0,0.00035616,30]
[399405613,1766327878021,500.0,0.00035616,30]
[399405614,1766327878123,151.0,0.00035616,30]
[399405615,1766327878686,151.0,0.00035616,30]
[399405616,1766327879137,500.0,0.00035616,30]
[399405617,1766327879296,151.0,0.00035616,30]
[399405618,1766327879766,500.0,0.00035616,30]
[399405619,1766327879929,151.0,0.00035616,30]
[399405620,1766327880429,500.0,0.00035616,30]
[399405621,1766327881081,500.0,0.00035616,30]
[399405622,1766327881711,500.0,0.00035616,30]
[399405623,1766327882327,500.0,0.00035616,30]
[399405624,1766327882970,500.0,0.00035616,30]
[399405625,1766327883633,500.0,0.00035616,30]
[399405626,1766327884253,500.0,0.00035616,30]
[399405627,1766327884888,500.0,0.00035616,30]
[399405628,1766327885227,1219.28,0.00035616,30]
[399405629,1766327885455,151.0,0.00035616,30]
[399405630,1766327885554,500.0,0.00035616,30]
[399405631,1766327886092,151.0,0.00035616,30]
[399405632,1766327886641,500.0,0.00035616,30]
[399405633,1766327886733,151.0,0.00035616,30]
[399405634,1766327887392,151.0,0.00035616,30]
[399405636,1766327888228,151.0,0.00035616,30]
[399405637,1766327888857,202.6395923,0.00035616,30]
[399405638,1766327892153,1219.28,0.00035616,30]
[399405639,1766327892649,200.0,0.00035616,30]
[399405640,1766327893271,200.0,0.00035616,30]
[399405641,1766327893884,200.0,0.00035616,30]
[399405642,1766327894996,200.0,0.00035616,30]
[399405643,1766327895641,200.0,0.00035616,30]
[399405644,1766327896282,200.0,0.00035616,30]
[399405645,1766327896907,200.0,0.00035616,30]
[399405646,1766327897840,200.0,0.00035616,30]
[399405647,1766327898194,200.0,0.00035616,30]
[399405648,1766327898685,1219.28,0.00035616,30]
[399405649,1766327898788,200.0,0.00035616,30]
[399405650,1766327904159,402.38,0.000356,30]
[399405651,1766327907350,1215.84,0.00035616,30]
[399405660,1766327925585,1219.28,0.00035616,30]
[399405661,1766327932959,1219.28,0.00035616,30]
[399405668,1766327943573,1219.28,0.00035616,30]
[399405669,1766327946861,280.50505469,0.00035616,30]
[399405670,1766327947927,5131.53603369,0.00010479,2]
[399405671,1766327947947,721.07149327,0.00010479,2]
[399405674,1766327951708,1219.28,0.00035616,30]
[399405676,1766327954021,455.94812838,0.0001048,2]
[399405678,1766327963628,1219.28,0.00035616,30]
[399405680,1766327972400,1219.28,0.00035616,30]
[399405689,1766327979705,1219.28,0.00035616,30]
[399405690,1766327986813,1219.28,0.00035616,30]
[399405717,1766328016185,151.0,0.00033,31]
[399405719,1766328021808,151.0,0.00033,31]
[399405720,1766328029317,151.0,0.00033,31]
[399405721,1766328030610,2041.0,0.00035616,30]
[399405741,1766328059235,1219.28,0.00035616,30]
[399405752,1766328069188,1219.28,0.00035616,30]
[399405754,1766328077459,1219.28,0.00035616,30]
[399405756,1766328087585,-300.0,0.00010574,2]
[399405757,1766328087609,-243.61034013,0.00010575,2]
[399405758,1766328087635,-99.52176544,0.00010575,2]
[399405759,1766328091361,-255.31320547,0.00010575,2]
[399405760,1766328091389,-151.24073899,0.00010575,2]
[399405761,1766328094285,303.96541892,0.0001048,2]
[399405762,1766328096719,774.346,0.00035087,41]
[399405763,1766328097176,362.14,0.000356,30]
[399405764,1766328097293,1219.28,0.00035616,30]
[399405766,1766328104086,1219.28,0.00035616,30]
[399405767,1766328110351,1219.28,0.00035616,30]
[399405770,1766328117307,1219.28,0.00035616,30]
[399405771,1766328125861,250.0,0.00035616,30]
[399405772,1766328126479,250.0,0.00035616,30]
[399405773,1766328127269,250.0,0.00035616,30]
[399405774,1766328127798,250.0,0.00035616,30]
[399405775,1766328128387,250.0,0.00035616,30]